fUST/lending_fUST_20240716
["ID","MTS","AMOUNT","RATE_DAILY","PERIOD"]
[332241507,1721065850429,-500.0,0.00022465,2]
[332241508,1721065850438,-500.0,0.00022465,2]
[332241509,1721065850447,-500.0,0.00022465,2]
[332241510,1721065850457,-500.0,0.00022465,2]
[332241511,1721065850470,-500.0,0.00022465,2]
[332241512,1721065850479,-500.0,0.00022465,2]
[332241513,1721065850488,-500.0,0.00022465,2]
[332241514,1721065850498,-500.0,0.00022465,2]
[332241515,1721065850508,-500.0,0.00022465,2]
[332241516,1721065850517,-150.112233,0.000225,4]
[332241517,1721065850526,-150.112233,0.000225,2]
[332241518,1721065850535,-306.0,0.00022548,2]
[332241519,1721065850546,-150.112233,0.000226,5]
[332241520,1721065850557,-150.112233,0.000226,5]
[332241521,1721065850567,-624.08259089,0.00022601,2]
[332241522,1721065850576,-611.7835798,0.00022691,2]
[332241523,1721065850585,-150.112233,0.000227,5]
[332241524,1721065850595,-500.0,0.00022739,2]
[332241525,1721065850604,-535.31,0.00022739,2]
[332241526,1721065850613,-458.09538258,0.00022739,2]
[332241527,1721065850622,-500.0,0.00022739,2]
[332241528,1721065850632,-500.0,0.00022739,2]
[332241529,1721065850641,-500.0,0.00022739,2]
[332241530,1721065850651,-500.0,0.00022739,2]
[332241531,1721065850660,-500.0,0.00022739,2]
[332241532,1721065850669,-500.0,0.00022739,2]
[332241533,1721065850678,-500.0,0.00022739,2]
[332241534,1721065850687,-500.0,0.00022739,4]
[332241535,1721065850697,-500.0,0.00022739,2]
[332241536,1721065850706,-500.0,0.00022739,2]
[332241537,1721065850715,-500.0,0.00022739,2]
[332241538,1721065850724,-500.0,0.00022739,2]
[332241539,1721065850733,-500.0,0.00022739,2]
[332241540,1721065850744,-500.0,0.00022739,2]
[332241541,1721065850753,-500.0,0.00022739,2]
[332241542,1721065850763,-500.0,0.00022739,2]
[332241543,1721065850772,-500.0,0.00022739,2]
[332241544,1721065850781,-500.0,0.00022739,2]
[332241545,1721065850791,-500.0,0.00022739,2]
[332241546,1721065850802,-500.0,0.00022739,2]
[332241547,1721065850811,-254.07591802,0.00022739,2]
[332241548,1721065850820,-500.0,0.00022739,2]
[332241549,1721065850829,-447.38473016,0.00022739,2]
[332241550,1721065850839,-500.0,0.00022739,2]
[332241551,1721065850848,-500.0,0.00022739,2]
[332241552,1721065850857,-500.0,0.00022739,2]
[332241553,1721065850866,-500.0,0.00022739,2]
[332241554,1721065850875,-500.0,0.00022739,2]
[332241555,1721065850884,-500.0,0.00022739,2]
[332241556,1721065850893,-500.0,0.00022739,2]
[332241557,1721065850902,-488.83448304,0.00022739,2]
[332241558,1721065850911,-500.0,0.00022739,2]
[332241559,1721065850921,-500.0,0.00022739,2]
[332241560,1721065850930,-500.0,0.00022739,2]
[332241561,1721065850939,-500.0,0.00022739,2]
[332241562,1721065850948,-457.95756333,0.00022739,2]
[332241563,1721065850964,-42.04243667,0.00022739,2]
[332241564,1721065850974,-343.41454184,0.00022739,2]
[332241565,1721065850983,-500.0,0.00022739,2]
[332241566,1721065850992,-500.0,0.00022739,2]
[332241567,1721065851001,-500.0,0.00022739,2]
[332241568,1721065851010,-500.0,0.00022739,2]
[332241569,1721065851020,-500.0,0.00022739,2]
[332241570,1721065851029,-500.0,0.00022739,2]
[332241571,1721065851038,-508.11,0.00022739,2]
[332241572,1721065851047,-500.0,0.00022739,2]
[332241573,1721065851062,-500.0,0.00022739,2]
[332241574,1721065851072,-500.0,0.00022739,2]
[332241575,1721065851081,-500.0,0.00022739,2]
[332241576,1721065851094,-500.0,0.00022739,2]
[332241577,1721065851103,-500.0,0.00022739,2]
[332241578,1721065851112,-694.22,0.00022739,2]
[332241579,1721065851121,-500.0,0.00022739,2]
[332241580,1721065851131,-500.0,0.00022739,2]
[332241581,1721065851140,-557.01,0.00022739,2]
[332241582,1721065851149,-500.0,0.00022739,2]
[332241583,1721065851159,-500.0,0.00022739,2]
[332241584,1721065851169,-748.78,0.00022739,2]
[332241585,1721065851179,-500.0,0.00022739,2]
[332241586,1721065851188,-500.0,0.00022739,2]
[332241587,1721065851198,-500.0,0.00022739,2]
[332241588,1721065851207,-500.0,0.00022739,2]
[332241589,1721065851216,-500.0,0.00022739,2]
[332241590,1721065851226,-500.0,0.00022739,2]
[332241591,1721065851238,-226.74014549,0.00022739,2]
[332241592,1721065851248,-500.0,0.00022739,2]
[332241593,1721065851258,-500.0,0.00022739,2]
[332241594,1721065851267,-500.0,0.00022739,2]
[332241595,1721065851275,-500.0,0.00022739,2]
[332241596,1721065851285,-707.08,0.00022739,2]
[332241597,1721065851294,-500.0,0.00022739,2]
[332241598,1721065851306,-500.0,0.00022739,2]
[332241599,1721065851316,-500.0,0.00022739,2]
[332241600,1721065851325,-500.0,0.00022739,2]
[332241601,1721065851334,-825.13,0.00022739,2]
[332241602,1721065851344,-513.95170948,0.00022739,2]
[332241603,1721065851352,-500.0,0.00022739,2]
[332241604,1721065851361,-500.0,0.00022739,2]
[332241605,1721065851370,-500.0,0.00022739,2]
[332241606,1721065851379,-500.0,0.00022739,2]
[332241607,1721065851389,-293.0012821,0.00022739,2]
[332241608,1721065851398,-413.61028078,0.00022739,2]
[332241609,1721065851407,-500.0,0.00022739,2]
[332241610,1721065851416,-500.0,0.00022739,2]
[332241611,1721065851424,-500.0,0.00022739,2]
[332241612,1721065851433,-500.0,0.00022739,2]
[332241613,1721065851442,-500.0,0.00022739,2]
[332241614,1721065851453,-500.0,0.00022739,2]
[332241615,1721065851462,-598.92,0.00022739,2]
[332241616,1721065851473,-606.92,0.00022739,2]
[332241617,1721065851482,-500.0,0.00022739,2]
[332241618,1721065851490,-1179.24,0.00022739,2]
[332241619,1721065851499,-500.0,0.00022739,2]
[332241620,1721065851508,-500.0,0.00022739,2]
[332241621,1721065851517,-500.0,0.00022739,2]
[332241622,1721065851526,-7876.0,0.00022739,2]
[332241623,1721065851535,-154.8107839,0.00022739,2]
[332241624,1721065851544,-682.67,0.00022739,2]
[332241625,1721065851556,-500.0,0.00022739,2]
[332241626,1721065851565,-7441.04,0.00022739,2]
[332241627,1721065851574,-922.77,0.00022739,2]
[332241628,1721065851586,-500.0,0.00022739,2]
[332241629,1721065851595,-500.0,0.00022739,2]
[332241630,1721065851605,-500.0,0.00022739,2]
[332241631,1721065851615,-500.0,0.00022739,2]
[332241632,1721065851624,-500.0,0.00022739,2]
[332241633,1721065851633,-1036.29,0.00022739,2]
[332241634,1721065851644,-500.0,0.00022739,2]
[332241635,1721065851654,-500.0,0.00022739,2]
[332241636,1721065851665,-500.0,0.00022739,2]
[332241637,1721065851675,-649.8,0.00022739,2]
[332241638,1721065851684,-526.18,0.00022739,2]
[332241639,1721065851693,-500.0,0.00022739,2]
[332241640,1721065851702,-500.0,0.00022739,2]
[332241641,1721065851711,-500.0,0.00022739,2]
[332241642,1721065851720,-500.0,0.00022739,2]
[332241643,1721065851729,-500.0,0.00022739,2]
[332241644,1721065851739,-500.0,0.00022739,2]
[332241645,1721065851749,-500.0,0.00022739,2]
[332241646,1721065851839,-150.112233,0.000228,3]
[332241647,1721065851848,-150.112233,0.000228,3]
[332241648,1721065851858,-150.112233,0.000229,4]
[332241649,1721065851867,-354.47078816,0.000229,2]
[332241650,1721065852008,-386.31818834,0.00022191,2]
[332241651,1721065852018,-159.365809,0.00022191,7]
[332241652,1721065852028,-364.55020955,0.000229,2]
[332241653,1721065852037,-6991.8061198,0.00022941,2]
[332241654,1721065852046,-203.877948,0.00022942,7]
[332241655,1721065852057,-560.925805,0.00022942,7]
[332241656,1721065852066,-560.925805,0.00022942,7]
[332241657,1721065852076,-151.0,0.00022942,7]
[332241658,1721065852085,-166.666666,0.00022944,2]
[332241659,1721065852095,-1172.178426,0.00023,7]
[332241660,1721065852104,-949.80055568,0.00023,2]
[332241661,1721065852113,-238.87248174,0.00023,2]
[332241662,1721065852122,-11367.1778876,0.00023,2]
[332241663,1721065852131,-10015.82191663,0.00023,6]
[332241664,1721065852141,-151.0,0.00023,7]
[332241665,1721065852150,-151.250362,0.00023,7]
[332241666,1721065852159,-158.774726,0.00023,7]
[332241667,1721065852168,-151.0,0.00023,7]
[332241668,1721065852177,-151.0,0.00023,7]
[332241669,1721065852187,-418.580423,0.00023,7]
[332241670,1721065852195,-418.580423,0.00023,7]
[332241671,1721065852204,-757.191609,0.00023,7]
[332241672,1721065852214,-757.191609,0.00023,7]
[332241673,1721065852223,-210.64416,0.00023,7]
[332241674,1721065852232,-151.0,0.00023,7]
[332241675,1721065852241,-151.0,0.00023,7]
[332241676,1721065852250,-564.7910745,0.00023013,2]
[332241677,1721065852259,-500.0,0.00023013,2]
[332241678,1721065852269,-500.0,0.00023013,2]
[332241679,1721065852278,-500.0,0.00023013,2]
[332241680,1721065852287,-500.0,0.00023013,2]
[332241681,1721065852296,-500.0,0.00023013,2]
[332241682,1721065852308,-191.99358578,0.00023013,2]
[332241683,1721065852317,-500.0,0.00023013,4]
[332241684,1721065852326,-500.0,0.00023013,2]
[332241685,1721065852335,-500.0,0.00023013,2]
[332241686,1721065852344,-500.0,0.00023013,2]
[332241687,1721065852353,-500.0,0.00023013,2]
[332241688,1721065852362,-544.68448429,0.00023013,2]
[332241689,1721065852371,-561.89,0.00023013,2]
[332241690,1721065852380,-500.0,0.00023013,2]
[332241691,1721065852389,-500.0,0.00023013,2]
[332241692,1721065852399,-500.0,0.00023013,2]
[332241693,1721065852408,-500.0,0.00023013,2]
[332241694,1721065852417,-242.25793319,0.00023013,2]
[332241695,1721065852427,-500.0,0.00023013,2]
[332241696,1721065852436,-151.0,0.00023013,7]
[332241697,1721065852445,-151.0,0.00023013,7]
[332241698,1721065852455,-500.0,0.00023013,2]
[332241699,1721065852467,-151.0,0.00023013,7]
[332241700,1721065852476,-500.0,0.00023013,2]
[332241701,1721065852486,-500.0,0.00023013,2]
[332241702,1721065852495,-500.0,0.00023013,2]
[332241703,1721065852504,-500.0,0.00023013,2]
[332241704,1721065852513,-500.0,0.00023013,2]
[332241705,1721065852522,-500.0,0.00023013,2]
[332241706,1721065852532,-500.0,0.00023013,2]
[332241707,1721065852543,-500.0,0.00023013,2]
[332241708,1721065852554,-315.20643363,0.00023013,2]
[332241709,1721065852564,-500.0,0.00023013,2]
[332241710,1721065852573,-500.0,0.00023013,2]
[332241711,1721065852582,-500.0,0.00023013,2]
[332241712,1721065852592,-500.0,0.00023013,2]
[332241713,1721065852601,-500.0,0.00023013,2]
[332241714,1721065852610,-500.0,0.00023013,2]
[332241715,1721065852619,-508.11,0.00023013,2]
[332241716,1721065852629,-584.57750691,0.00023013,2]
[332241717,1721065852638,-500.0,0.00023013,2]
[332241718,1721065852647,-500.0,0.00023013,2]
[332241719,1721065852656,-500.0,0.00023013,2]
[332241720,1721065852665,-694.22,0.00023013,2]
[332241721,1721065852674,-500.0,0.00023013,2]
[332241722,1721065852683,-557.01,0.00023013,2]
[332241723,1721065852693,-500.0,0.00023013,2]
[332241724,1721065852702,-748.78,0.00023013,2]
[332241725,1721065852711,-500.0,0.00023013,2]
[332241726,1721065852720,-152.041816,0.00023013,7]
[332241727,1721065852730,-275.47223015,0.00023013,2]
[332241728,1721065852739,-500.0,0.00023013,2]
[332241729,1721065852748,-500.0,0.00023013,2]
[332241730,1721065852758,-500.0,0.00023013,2]
[332241731,1721065852767,-151.0,0.00023013,7]
[332241732,1721065852777,-500.0,0.00023013,2]
[332241733,1721065852786,-500.0,0.00023013,2]
[332241734,1721065852795,-707.08,0.00023013,2]
[332241735,1721065852805,-500.0,0.00023013,2]
[332241736,1721065852814,-500.0,0.00023013,2]
[332241737,1721065852824,-500.0,0.00023013,2]
[332241738,1721065852834,-151.0,0.00023013,7]
[332241739,1721065852843,-825.13,0.00023013,2]
[332241740,1721065852852,-151.0,0.00023013,7]
[332241741,1721065852862,-500.0,0.00023013,2]
[332241742,1721065852872,-500.0,0.00023013,2]
[332241743,1721065852881,-500.0,0.00023013,2]
[332241744,1721065852891,-500.0,0.00023013,2]
[332241745,1721065852900,-500.0,0.00023013,2]
[332241746,1721065852910,-500.0,0.00023013,2]
[332241747,1721065852919,-502.16815371,0.00023013,2]
[332241748,1721065852929,-688.239631,0.00023013,7]
[332241749,1721065852938,-500.0,0.00023013,2]
[332241750,1721065852947,-688.239631,0.00023013,7]
[332241751,1721065852956,-500.0,0.00023013,2]
[332241752,1721065852966,-598.92,0.00023013,2]
[332241753,1721065852975,-500.0,0.00023013,2]
[332241754,1721065852984,-1179.24,0.00023013,2]
[332241755,1721065852994,-500.0,0.00023013,2]
[332241756,1721065853003,-500.0,0.00023013,2]
[332241757,1721065853012,-1798.20007593,0.00023013,2]
[332241758,1721065853025,-6077.79992407,0.00023013,2]
[332241759,1721065853034,-682.67,0.00023013,2]
[332241760,1721065853043,-500.0,0.00023013,2]
[332241761,1721065853052,-7441.04,0.00023013,2]
[332241762,1721065853062,-922.77,0.00023013,2]
[332241763,1721065853072,-500.0,0.00023013,2]
[332241764,1721065853081,-500.0,0.00023013,2]
[332241765,1721065853091,-370.90260481,0.00023013,2]
[332241766,1721065853101,-1036.29,0.00023013,2]
[332241767,1721065853110,-332.16336884,0.00023013,2]
[332241768,1721065853120,-500.0,0.00023013,2]
[332241769,1721065853130,-649.8,0.00023013,2]
[332241770,1721065853139,-526.18,0.00023013,2]
[332241771,1721065853149,-500.0,0.00023013,2]
[332241772,1721065853158,-500.0,0.00023013,2]
[332241773,1721065853167,-500.0,0.00023013,2]
[332241774,1721065853176,-500.0,0.00023013,2]
[332241775,1721065853186,-500.0,0.00023013,2]
[332241776,1721065853195,-150.112233,0.000231,5]
[332241777,1721065853205,-150.112233,0.000232,3]
[332241778,1721065853214,-200.0,0.00023219,2]
[332241779,1721065853224,-200.0,0.00023219,2]
[332241780,1721065853234,-500.0,0.00023255,2]
[332241781,1721065853243,-576.69,0.00023255,2]
[332241782,1721065853253,-507.44700394,0.00023287,2]
[332241783,1721065853262,-558.6835712,0.00023287,2]
[332241784,1721065853272,-500.0,0.00023287,2]
[332241785,1721065853281,-500.0,0.00023287,2]
[332241786,1721065853291,-500.0,0.00023287,2]
[332241787,1721065853301,-500.0,0.00023287,4]
[332241788,1721065853312,-500.0,0.00023287,2]
[332241789,1721065853322,-500.0,0.00023287,2]
[332241790,1721065853332,-500.0,0.00023287,2]
[332241791,1721065853341,-500.0,0.00023287,2]
[332241792,1721065853351,-500.0,0.00023287,2]
[332241793,1721065853362,-500.0,0.00023287,2]
[332241794,1721065853372,-500.0,0.00023287,2]
[332241795,1721065853381,-500.0,0.00023287,2]
[332241796,1721065853390,-500.0,0.00023287,2]
[332241797,1721065853400,-607.61,0.00023287,2]
[332241798,1721065853409,-500.0,0.00023287,2]
[332241799,1721065853419,-190.81406888,0.00023287,2]
[332241800,1721065853430,-500.0,0.00023287,2]
[332241801,1721065853440,-500.0,0.00023287,2]
[332241802,1721065853452,-500.0,0.00023287,2]
[332241803,1721065853465,-151.0,0.00023287,7]
[332241804,1721065853475,-500.0,0.00023287,2]
[332241805,1721065853485,-500.0,0.00023287,2]
[332241806,1721065853495,-500.0,0.00023287,2]
[332241807,1721065853504,-500.0,0.00023287,2]
[332241808,1721065853514,-500.0,0.00023287,2]
[332241809,1721065853523,-500.0,0.00023287,2]
[332241810,1721065853533,-151.0,0.00023287,7]
[332241811,1721065853543,-151.0,0.00023287,7]
[332241812,1721065853552,-508.11,0.00023287,2]
[332241813,1721065853564,-151.0,0.00023287,7]
[332241814,1721065853573,-500.0,0.00023287,2]
[332241815,1721065853583,-390.621127,0.00023287,7]
[332241816,1721065853592,-151.0,0.00023287,7]
[332241817,1721065853602,-594.77,0.00023287,2]
[332241818,1721065853611,-390.621127,0.00023287,7]
[332241819,1721065853621,-500.0,0.00023287,2]
[332241820,1721065853630,-694.22,0.00023287,2]
[332241821,1721065853640,-500.0,0.00023287,2]
[332241822,1721065853650,-557.01,0.00023287,2]
[332241823,1721065853660,-500.0,0.00023287,2]
[332241824,1721065853751,-748.78,0.00023287,2]
[332241825,1721065853760,-151.0,0.00023287,7]
[332241826,1721065853771,-500.0,0.00023287,2]
[332241827,1721065853780,-461.37514962,0.00023287,2]
[332241828,1721065853789,-500.0,0.00023287,2]
[332241829,1721065853799,-500.16753779,0.00023287,2]
[332241830,1721065853809,-222.10780251,0.00023287,2]
[332241831,1721065853819,-151.0,0.00023287,7]
[332241832,1721065853828,-500.0,0.00023287,2]
[332241833,1721065853837,-707.08,0.00023287,2]
[332241834,1721065853847,-151.0,0.00023287,7]
[332241835,1721065853856,-500.0,0.00023287,2]
[332241836,1721065853865,-500.0,0.00023287,2]
[332241837,1721065853875,-825.13,0.00023287,2]
[332241838,1721065853884,-500.0,0.00023287,2]
[332241839,1721065853894,-500.0,0.00023287,2]
[332241840,1721065853903,-500.0,0.00023287,2]
[332241841,1721065853913,-574.63418087,0.00023287,2]
[332241842,1721065853923,-500.0,0.00023287,2]
[332241843,1721065853933,-500.0,0.00023287,2]
[332241844,1721065853943,-500.0,0.00023287,2]
[332241845,1721065853953,-500.0,0.00023287,2]
[332241846,1721065853962,-598.92,0.00023287,2]
[332241847,1721065853971,-500.0,0.00023287,2]
[332241848,1721065853981,-1179.24,0.00023287,2]
[332241849,1721065853990,-500.0,0.00023287,2]
[332241850,1721065853999,-500.0,0.00023287,2]
[332241851,1721065854009,-7876.0,0.00023287,2]
[332241852,1721065854019,-682.67,0.00023287,2]
[332241853,1721065854029,-500.0,0.00023287,2]
[332241854,1721065854039,-7441.04,0.00023287,2]
[332241855,1721065854049,-922.77,0.00023287,2]
[332241856,1721065854062,-500.0,0.00023287,2]
[332241857,1721065854072,-500.0,0.00023287,2]
[332241858,1721065854081,-1036.29,0.00023287,2]
[332241859,1721065854091,-649.8,0.00023287,2]
[332241860,1721065854100,-526.18,0.00023287,2]
[332241861,1721065854109,-312.1,0.00023287,2]
[332241862,1721065854119,-500.0,0.00023287,2]
[332241863,1721065854128,-500.0,0.00023287,2]
[332241864,1721065854138,-500.0,0.00023287,2]
[332241865,1721065854148,-150.112233,0.000234,3]
[332241866,1721065854158,-158.76491,0.00023455,7]
[332241867,1721065854167,-151.0,0.00023455,2]
[332241868,1721065854177,-166.666666,0.00023456,2]
[332241869,1721065854187,-620.00002161,0.00023532,2]
[332241870,1721065854196,-528.83031882,0.00023561,2]
[332241871,1721065854206,-368.93,0.00023561,2]
[332241872,1721065854215,-500.0,0.00023561,4]
[332241873,1721065854224,-500.0,0.00023561,2]
[332241874,1721065854234,-157.6979622,0.00023561,2]
[332241875,1721065854244,-597.20473165,0.00023561,2]
[332241876,1721065854253,-500.0,0.00023561,2]
[332241877,1721065854263,-157.85054141,0.00023561,2]
[332241878,1721065854272,-500.0,0.00023561,2]
[332241879,1721065854282,-552.98300427,0.00023561,2]
[332241880,1721065854291,-168.3972397,0.00023561,2]
[332241881,1721065854301,-500.0,0.00023561,2]
[332241882,1721065854313,-465.4039942,0.00023561,2]
[332241883,1721065854323,-500.0,0.00023561,2]
[332241884,1721065854332,-500.0,0.00023561,2]
[332241885,1721065854342,-500.0,0.00023561,2]
[332241886,1721065854354,-500.0,0.00023561,2]
[332241887,1721065854363,-500.0,0.00023561,2]
[332241888,1721065854371,-500.0,0.00023561,2]
[332241889,1721065854381,-500.0,0.00023561,2]
[332241890,1721065854389,-500.0,0.00023561,2]
[332241891,1721065854398,-508.11,0.00023561,2]
[332241892,1721065854407,-500.0,0.00023561,2]
[332241893,1721065854417,-500.0,0.00023561,2]
[332241894,1721065854426,-694.22,0.00023561,2]
[332241895,1721065854435,-500.0,0.00023561,2]
[332241896,1721065854446,-557.01,0.00023561,2]
[332241897,1721065854456,-500.0,0.00023561,2]
[332241898,1721065854468,-748.78,0.00023561,2]
[332241899,1721065854477,-500.0,0.00023561,2]
[332241900,1721065854487,-500.0,0.00023561,2]
[332241901,1721065854497,-707.08,0.00023561,2]
[332241902,1721065854507,-500.0,0.00023561,2]
[332241903,1721065854520,-500.0,0.00023561,2]
[332241904,1721065854530,-825.13,0.00023561,2]
[332241905,1721065854542,-500.0,0.00023561,2]
[332241906,1721065854551,-500.0,0.00023561,2]
[332241907,1721065854563,-500.0,0.00023561,2]
[332241908,1721065854573,-500.0,0.00023561,2]
[332241909,1721065854583,-500.0,0.00023561,2]
[332241910,1721065854595,-500.0,0.00023561,2]
[332241911,1721065854605,-500.0,0.00023561,2]
[332241912,1721065854614,-598.92,0.00023561,2]
[332241913,1721065854623,-500.0,0.00023561,2]
[332241914,1721065854633,-1179.24,0.00023561,2]
[332241915,1721065854642,-500.0,0.00023561,2]
[332241916,1721065854652,-500.0,0.00023561,2]
[332241917,1721065854661,-7876.0,0.00023561,2]
[332241918,1721065854670,-682.67,0.00023561,2]
[332241919,1721065854681,-500.0,0.00023561,2]
[332241920,1721065854690,-7441.04,0.00023561,2]
[332241921,1721065854700,-922.77,0.00023561,2]
[332241922,1721065854710,-424.63137672,0.00023561,2]
[332241923,1721065854720,-500.0,0.00023561,2]
[332241924,1721065854729,-560.925805,0.00023561,7]
[332241925,1721065854739,-1036.29,0.00023561,2]
[332241926,1721065854749,-560.925805,0.00023561,7]
[332241927,1721065854758,-151.0,0.00023561,7]
[332241928,1721065854768,-649.8,0.00023561,2]
[332241929,1721065854778,-151.0,0.00023561,7]
[332241930,1721065854788,-526.18,0.00023561,2]
[332241931,1721065854798,-557.80713184,0.00023561,2]
[332241932,1721065854808,-500.0,0.00023561,2]
[332241933,1721065854818,-500.0,0.00023561,2]
[332241934,1721065854828,-150.112233,0.000237,5]
[332241935,1721065854838,-620.20412954,0.00023731,2]
[332241936,1721065854848,-1152.0,0.00023783,2]
[332241937,1721065854858,-362.08311146,0.00023835,4]
[332241938,1721065854868,-417.90469199,0.00023835,2]
[332241939,1721065854878,-500.0,0.00023835,2]
[332241940,1721065854887,-500.0,0.00023835,2]
[332241941,1721065854898,-500.0,0.00023835,2]
[332241942,1721065854907,-500.0,0.00023835,2]
[332241943,1721065854918,-500.0,0.00023835,2]
[332241944,1721065854927,-500.0,0.00023835,2]
[332241945,1721065854936,-500.0,0.00023835,2]
[332241946,1721065854946,-641.0079705,0.00023835,2]
[332241947,1721065854956,-500.0,0.00023835,2]
[332241948,1721065854967,-508.11,0.00023835,2]
[332241949,1721065854977,-500.0,0.00023835,2]
[332241950,1721065854987,-221.08492536,0.00023835,2]
[332241951,1721065854997,-694.22,0.00023835,2]
[332241952,1721065855007,-500.0,0.00023835,2]
[332241953,1721065855018,-557.01,0.00023835,2]
[332241954,1721065855029,-500.0,0.00023835,2]
[332241955,1721065855039,-748.78,0.00023835,2]
[332241956,1721065855049,-500.0,0.00023835,2]
[332241957,1721065855060,-500.0,0.00023835,2]
[332241958,1721065855070,-707.08,0.00023835,2]
[332241959,1721065855080,-500.0,0.00023835,2]
[332241960,1721065855089,-825.13,0.00023835,2]
[332241961,1721065855099,-500.0,0.00023835,2]
[332241962,1721065855108,-500.0,0.00023835,2]
[332241963,1721065855118,-500.0,0.00023835,2]
[332241964,1721065855128,-151.0,0.00023835,7]
[332241965,1721065855137,-500.0,0.00023835,2]
[332241966,1721065855147,-500.0,0.00023835,2]
[332241967,1721065855156,-151.0,0.00023835,7]
[332241968,1721065855166,-500.0,0.00023835,2]
[332241969,1721065855176,-418.580423,0.00023835,7]
[332241970,1721065855186,-418.580423,0.00023835,7]
[332241971,1721065855195,-500.0,0.00023835,2]
[332241972,1721065855205,-757.191609,0.00023835,7]
[332241973,1721065855215,-598.92,0.00023835,2]
[332241974,1721065855225,-757.191609,0.00023835,7]
[332241975,1721065855237,-500.0,0.00023835,2]
[332241976,1721065855248,-1179.24,0.00023835,2]
[332241977,1721065855257,-500.0,0.00023835,2]
[332241978,1721065855266,-500.0,0.00023835,2]
[332241979,1721065855276,-7876.0,0.00023835,2]
[332241980,1721065855285,-151.0,0.00023835,7]
[332241981,1721065855295,-682.67,0.00023835,2]
[332241982,1721065855305,-7441.04,0.00023835,2]
[332241983,1721065855316,-922.77,0.00023835,2]
[332241984,1721065855326,-500.0,0.00023835,2]
[332241985,1721065855335,-1036.29,0.00023835,2]
[332241986,1721065855345,-649.8,0.00023835,2]
[332241987,1721065855354,-526.18,0.00023835,2]
[332241988,1721065855365,-200.0,0.00023847,2]
[332241989,1721065855375,-30308.88124384,0.00023966,5]
[332241990,1721065855384,-20733.74042996,0.00023966,2]
[332241991,1721065855394,-166.666666,0.00023969,2]
[332241992,1721065855404,-1519.3,0.00023977,2]
[332241993,1721065855413,-1361.74587991,0.00024,2]
[332241994,1721065855423,-1000.0,0.00024,24]
[332241995,1721065855433,-4332.06024111,0.00024,30]
[332241996,1721065855442,-153.0,0.00024,2]
[332241997,1721065855451,-153.0,0.00024,2]
[332241998,1721065855465,-153.0,0.00024,2]
[332241999,1721065855474,-153.0,0.00024,2]
[332242000,1721065855483,-153.0,0.00024,2]
[332242001,1721065855493,-153.0,0.00024,2]
[332242002,1721065855577,-242.2625822,0.00024,2]
[332242003,1721065855588,-153.0,0.00024,2]
[332242004,1721065855597,-153.0,0.00024,2]
[332242005,1721065855607,-153.0,0.00024,2]
[332242006,1721065855617,-500.0,0.00024109,2]